Workbook

Sheet 표지
A14: 법인회계 자금예산서
A15: (2020학년도)
A28: 학교법인 한길학원

Sheet 예산총칙

Sheet 수입
A1: 2020학년도 법인회계 자금예산서
A2: (2020. 3. 1.부터 2021. 2. 28.까지)
A5: 1. 수 입 | G5: (단위 : 천원)
A6: 과 목 | D6: 2020학년도 예산 | E6: 2019학년도 추경예산 | F6: 증감(△) | G6: 산 출 근 거
A7: 관 | B7: 항 | C7: 목
A8: 5200 | D8: =SUM(D11,D39,D48) -> 10000 | E8: =SUM(E11,E39,E48) -> 43000 | F8: =D8-E8 -> -33000
A9: 전 입 및
A10: 기부금수입
B11: 5210 | D11: =D13+D17+D21+D24+D28+D32+D35 -> 0 | E11: =E13+E17+E21+E24+E28+E32+E35 -> 0 | F11: =D11-E11 -> 0
B12: 전입금수입
C13: 5211 | F13: =D13-E13 -> 0
C14: 경 상 비
C15: 전 입 금
C17: 5212 | F17: =D17-E17 -> 0
C18: 법정부담
C19: 전 입 금
C21: 5213 | F21: =D21-E21 -> 0
C22: 자산전입금
C24: 5214 | F24: =D24-E24 -> 0
C25: 부속병원
C26: 전 입 금
C28: 5215 | F28: =D28-E28 -> 0
C29: 특별회계
C30: 전 입 금
C32: 5216 | F32: =D32-E32 -> 0
C33: 교내전입금
C35: 5217 | F35: =D35-E35 -> 0
C36: 수익사업
C37: 전 입 금
B39: 5220 | D39: =SUM(D41,D43,D45) -> 10000 | E39: =SUM(E41,E43,E45) -> 43000 | F39: =D39-E39 -> -33000
B40: 기부금수입
C41: 5221 | D41: 10000 | E41: 43000 | F41: =D41-E41 -> -33000 | G41: * 기업체 등 외부기부금
C42: 일반기부금
C43: 5222 | D43: =D44 -> 0 | E43: =E44 -> 0 | F43: =D43-E43 -> 0
C44: 지정기부금
C45: 5223 | D45: =D46 -> 0 | E45: =E46 -> 0 | F45: =D45-E45 -> 0
C46: 연구기부금
B48: 5230 | D48: =D51+D55+D58+D61 -> 0 | E48: =E51+E55+E58+E61 -> 0 | F48: =D48-E48 -> 0
B49: 국고보조금
B50: 수 입
C51: 5231 | F51: =D51-E51 -> 0
C52: 시설.설비
C53: 보 조
C55: 5232 | F55: =D55-E55 -> 0
C56: 도서관보조
C58: 5233 | F58: =D58-E58 -> 0
C59: 자구노력지원
C61: 5239 | F61: =D61-E61 -> 0
C62: 기타보조금
A64: 5300 | D64: =D66+D75+D85 -> 0 | E64: =E66+E75+E85 -> 0 | F64: =D64-E64 -> 0
A65: 교육부대수입
B66: 5310 | D66: =D69+D72 -> 0 | E66: =E69+E72 -> 0 | F66: =D66-E66 -> 0
B67: 입시수수료
B68: 수 입
C69: 5311 | F69: =D69-E69 -> 0
C70: 입학원서대
C72: 5312 | F72: =D72-E72 -> 0
C73: 수 험 료
B75: 5320 | D75: =D78+D81 -> 0 | E75: =E78+E81 -> 0 | F75: =D75-E75 -> 0
B76: 증명.사용료
B77: 수 입
C78: 5321 | F78: =D78-E78 -> 0
C79: 증 명 료
C81: 5322 | F81: =D81-E81 -> 0
C82: 대여료및
C83: 사 용 료
B85: 5330 | D85: =D88+D92+D95 -> 0 | E85: =E88+E92+E95 -> 0 | F85: =D85-E85 -> 0
B86: 기타교육
B87: 부대수입
C88: 5331 | F88: =D88-E88 -> 0
C89: 논문심사
C90: 수 입
C92: 5332 | F92: =D92-E92 -> 0
C93: 실습수입
D94: 97000 | E94: 97000
C95: 5339 | F95: =D95-E95 -> 0
C96: 기타교육
C97: 부대수입
A99: 5400 | D99: =D101+D107+D113 -> 95010 | E99: =E101+E107+E113 -> 18010 | F99: =D99-E99 -> 77000
A100: 교육외수입
B101: 5410 | D101: =D104 -> 95000 | E101: =E104 -> 18000 | F101: =D101-E101 -> 77000
B102: 예금이자
B103: 수 입
C104: 5411 | D104: 95000 | E104: 18000 | F104: =D104-E104 -> 77000 | G104: * 농협 수익용예금 : 15,000,000원
C105: 예금이자 | G105: * 투자유가증권 정기예금이자 : 80,000,000원
B107: 5420 | D107: =D110 -> 10 | E107: =E110 -> 10 | F107: =D107-E107 -> 0
B108: 기타교육외
B109: 수 입
C110: 5421 | D110: 10 | E110: 10 | F110: =D110-E110 -> 0 | G110: * 기타 잡수입 : 10,000원
C111: 잡수입
B113: 5430 | D113: =D116+D119+D122+D126 -> 0 | E113: =E116+E119+E122+E126 -> 0 | F113: =D113-E113 -> 0
B114: 수익재산
B115: 수 입
C116: 5431 | F116: =D116-E116 -> 0
C117: 임대료수입
C119: 5432 | F119: =D119-E119 -> 0
C120: 배당금수입
C122: 5433 | F122: =D122-E122 -> 0
C123: 임.농수산물
C124: 수 입
C126: 5439 | F126: =D126-E126 -> 0
C127: 기타수입
C128: 재산수입
C129: 잡 수 입
A130: 1200 | D130: =D133+D146+D155 -> 16700 | E130: =E133+E146+E155 -> 19500 | F130: =D130-E130 -> -2800
A131: 투자와기타
A132: 자산수입
B133: 1220 | C133: 1221 | D133: 4000 | E133: 4000 | F133: =D133-E133 -> 0 | G133: * 투자유가증권 분배금 처분이익(선급법인세)
B134: 투자자산 | C134: 투자유가증권
B135: 수 입 | C135: 매 각 대
C136: 1221 | F136: =D136-E136 -> 0
C137: 투자유가증권
C138: 매 각 대
C140: 1222 | F140: =D140-E140 -> 0
C141: 출자금회수
C143: 1229 | D143: 0 | E143: 0 | F143: =D143-E143 -> 0
C144: 기타투자자산
C145: 수 입
B146: 1260 | D146: =D149 -> 0 | E146: =E149 -> 0 | F146: =D146-E146 -> 0
B147: 임의기금인출
B148: 수 입
C149: 1263 | D149: 0 | E149: 0 | F149: =D149-E149 -> 0
C150: 임의건축기금
C151: 인출
F152: =D152-E152 -> 0
C153: 기타기금인출
B155: 1240 | D155: =D158+D162+D166+D174+D170 -> 12700 | E155: =E158+E162+E166+E174+E170 -> 15500 | F155: =D155-E155 -> -2800
B156: 기타자산
B157: 수 입
C158: 1241 | F158: =D158-E158 -> 0
C159: 전신전화
C160: 보증금회수
C162: 1242 | F162: =D162-E162 -> 0
C163: 임차보증금
C164: 회 수
D165: =D158-D161 -> 0 | E165: =E158-E161 -> 0
C166: 1243 | F166: =D166-E166 -> 0
C167: 장기대여금
C168: 회 수
C170: 1244 | D170: 12700 | E170: 15500 | F170: =D170-E170 -> -2800 | G170: 수익용예금 만기이자 인출 수입
C171: 수익용예금
C172: 인 출
C174: 1249 | F174: =D174-E174 -> 0
C175: 기타자산
C176: 수 입
A178: 1300 | D178: =D181 -> 0 | E178: =E181 -> 0 | F178: =D178-E178 -> 0
A179: 고정자산
A180: 매각수입
B181: 1310 | D181: =D184+D187+D190+D193+D197+D201+D205+D208 -> 0 | E181: =E184+E187+E190+E193+E197+E201+E205+E208 -> 0 | F181: =D181-E181 -> 0
B182: 유형고정자산
B183: 매각수입
C184: 1311 | D184: 0 | E184: 0 | F184: =D184-E184 -> 0
C185: 토지매각대
C187: 1312 | D187: 0 | E187: 0 | F187: =D187-E187 -> 0
C188: 건물매각대
C190: 1313 | F190: =D190-E190 -> 0
C191: 구축물매각대
C193: 1314 | F193: =D193-E193 -> 0
C194: 기계.기구
C195: 매 각 대
C197: 1315 | F197: =D197-E197 -> 0
C198: 집기비품
C199: 매 각 대
C201: 1316 | F201: =D201-E201 -> 0
C202: 차량운반구
C203: 매 각 대
C205: 1317 | F205: =D205-E205 -> 0
C206: 도서매각대
C208: 13183 | F208: =D208-E208 -> 0
C209: 유물매각대
A211: 2100 | D211: =D213+D225 -> 0 | E211: =E213+E225 -> 0 | F211: =D211-E211 -> 0
A212: 유동부채입금
B213: 2110 | D213: =D215+D219+D222 -> 0 | E213: =E215+E219+E222 -> 0 | F213: =D213-E213 -> 0
B214: 단기차입금
C215: 2211 | F215: =D215-E215 -> 0
C216: 장기차입금
C217: 차 입
C219: 2212 | F219: =D219-E219 -> 0
C220: 차관도입
C222: 2213 | F222: =D222-E222 -> 0
C223: 학교채매각
A225: 3100 | D225: =D227+D229 -> 0 | E225: =E227+E229 -> 0 | F225: =D225-E225 -> 0
A226: 기본금
B227: 3110 | F227: =D227-E227 -> 0
B228: 출연기본금
C229: 1311 | F229: =D229-E229 -> 0
C230: 설립자기본금
A231: 미사용 전기이월자금 | B231: 전기이월자금 | E231: 56478 | F231: =D231-E231 -> -56478
B234: 1100 | D234: =D237+D239 -> 95043 | E234: =E237+E239 -> 95043 | F234: =SUM(F237,F239) -> 0
B235: 기 초
B236: 유동자산
C237: 1110 | D237: 79521 | E237: 79521 | F237: =D237-E237 -> 0 | G237: * 이월자금 : 79,521,000원
C238: 유동자금
C239: 1120 | D239: 15522 | E239: 15522 | F239: =D239-E239 -> 0 | G239: * 선급법인세 : 15,522,000원
C240: 기타유동자산
B241: 2100 | D241: =D244+D246+D249 -> 572 | E241: =E244+E246+E249 -> 572 | F241: =D241-E241 -> 0
B242: 기 초
B243: 유동부채
C244: 2120 | D244: 0 | E244: 0 | F244: =D244-E244 -> 0
C245: 예 수 금
... 5 more rows

Sheet 지출
A1: 2020학년도 법인회계 자금예산서
A2: (2020. 3. 1.부터 2021. 2. 28.까지)
A5: 2. 지 출 | G5: (단위 : 천원)
A6: 과 목 | D6: 2020학년도 예산 | E6: 2019학년도 추경예산 | F6: 증감(△) | G6: 산 출 근 거
A7: 관 | B7: 항 | C7: 목
A8: 4100 | D8: =D10 -> 0 | E8: =E10 -> 0 | F8: =D8-E8 -> 0
A9: 보 수
B10: 4120 | D10: =D12+D15 -> 0 | E10: =E12+E15 -> 0 | F10: =D10-E10 -> 0
B11: 직원보수
C12: 4121 | E12: 0 | F12: =D12-E12 -> 0
C13: 직원급여
C15: 4122 | D15: 0 | E15: 0 | F15: =D15-E15 -> 0
C16: 직원상여금
A18: 4200 | D18: =D20+D31+D56 -> 59209 | E18: =E20+E31+E56 -> 74687 | F18: =D18-E18 -> -15478
A19: 관리운영비
B20: 4210 | D20: =D22+D24+D26+D28 -> 0 | E20: =E22+E24+E26+E28 -> 0 | F20: =D20-E20 -> 0
B21: 시설관리비
C22: 4211 | D22: 0 | E22: 0 | F22: =D22-E22 -> 0
C23: 건축물관리비
C24: 4212 | D24: 0 | E24: 0 | F24: =D24-E24 -> 0
C25: 장비관리비
C26: 4215 | F26: =D26-E26 -> 0
C27: 시설용역비
C28: 4219 | D28: 0 | E28: 0 | F28: =D28-E28 -> 0
C29: 기타시설
C30: 관 리 비
B31: 4220 | D31: =D33+D35+D38+D41+D43+D45+D47+D50+D53 -> 24659 | E31: =E33+E35+E38+E41+E43+E45+E47+E50+E53 -> 23140 | F31: =D31-E31 -> 1519
B32: 일반관리비
C33: 4221 | D33: 500 | E33: 500 | F33: =D33-E33 -> 0 | G33: * 출장 여비 : 100,000원*5회=500,000원
C34: 여비교통비
C35: 4222 | D35: 0 | E35: 0 | F35: =D35-E35 -> 0
C36: 차량유지비
C38: 4223 | D38: 1000 | E38: 1000 | F38: =D38-E38 -> 0 | G38: * 토너 : 300,000원
C39: 소모품비 | G39: * 용지 : 100,000원
G40: * 기타 소모품비 : 600,000원
C41: 4224 | D41: 0 | E41: 0 | F41: =D41-E41 -> 0
C42: 인쇄출판비
C43: 4225 | D43: 0 | E43: 0 | F43: =D43-E43 -> 0
C44: 난 방 비
C45: 4226 | D45: 0 | E45: 0 | F45: =D45-E45 -> 0
C46: 전기.수도료
C47: 4227 | D47: 500 | E47: 340 | F47: =D47-E47 -> 160 | G47: * 이사회통지문 발송 우편요금 : 400,000원
C48: 통 신 비 | G48: * 기타 우편요금 : 100,000원
C50: 4228 | D50: 20459 | E50: 18100 | F50: =D50-E50 -> 2359 | G50: * 전문대학 법인협의회 회비 : 15,000,000원
C51: 제세.공과금 | G51: * 수익용 토지 재산세 : 4,500,000원
G52: * 기타 각종 세금 : 959,000원
C53: 4229 | D53: 2200 | E53: 3200 | F53: =D53-E53 -> -1000 | G53: * 임원등기 수수료 : 1,000,000원
C54: 지급수수료 | G54: * 인증서 갱신 수수료 : 200,000원
G55: * 소송관련 송달료 등 : 1,000,000원
B56: 4230 | D56: =D58+D61+D63+D67+D70+D72+D75+D78 -> 34550 | E56: =E58+E61+E63+E67+E70+E72+E75+E78 -> 51547 | F56: =D56-E56 -> -16997
B57: 운 영 비
C58: 4231 | D58: 0 | E58: 0 | F58: =D58-E58 -> 0
C59: 복리후생비
C61: 4232 | D61: 450 | E61: 450 | F61: =D61-E61 -> 0 | G61: * 법인업무 담당자 연수 참가비
C62: 교육훈련비 | G62: : 450,000원*1회=450,000원
C63: 4233 | D63: 9800 | E63: 22497 | F63: =D63-E63 -> -12697 | G63: * 2019학년도 감사 및 세무조정: 7,700,000원
C64: 일반용역비 | G64: * 2020학년도 회계 중간감사 : 1,100,000원
G65: * 기타 용역비 : 1,000,000원
C67: 4234 | D67: 500 | E67: 500 | F67: =D67-E67 -> 0 | G67: * 경조금 등 : 500,000원
C68: 업무추진비
C70: 4235 | D70: 0 | E70: 0 | F70: =D70-E70 -> 0
C71: 홍 보 비
C72: 4236 | D72: 23100 | E72: 27400 | F72: =D72-E72 -> -4300 | G72: * 이사회 거마비:2,700천원*7회=18,900,000원
C73: 회의비 | G73: * 회의 식대 : 1,500,000원
G74: * 징계위원회 등 회의비 : 2,700,000원
C75: 4237 | D75: 700 | E75: 700 | F75: =D75-E75 -> 0 | G75: * 각종 행사비
C76: 행 사 비 | G76: : 350,000원*2회=700,000원
C78: 4239 | D78: 0 | E78: 0 | F78: =D78-E78 -> 0
C79: 기타운영비
A80: 4400 | D80: =D82 -> 1 | E80: =E82 -> 1 | F80: =D80-E80 -> 0
A81: 교육외비용
B82: 4420 | D82: =D84 -> 1 | E82: =E84 -> 1 | F82: =D82-E82 -> 0
B83: 기타교육
B84: 비용 | C84: 4421 | D84: 1 | E84: 1 | F84: =D84-E84 -> 0 | G84: *존치예산
C85: 잡 손 실
A87: 4500 | D87: =D89 -> 45300 | E87: =E89 -> 40300 | F87: =D87-E87 -> 5000
A88: 전 출 금
B89: 4510 | D89: =D91+D94 -> 45300 | E89: =E91+E94 -> 40300 | F89: =D89-E89 -> 5000
B90: 전 출 금
C91: 4511 | D91: 35300 | E91: 35300 | F91: =D91-E91 -> 0 | G91: *대학 경상비 전출 : 19,000,000원
C92: 경 상 비 | G92: *대학 수용부지 손실분 일부 보전: 16,300,000원
C93: 전 출 금
C94: 4512 | D94: 10000 | E94: 5000 | F94: =D94-E94 -> 5000 | G94: * 대학 사학연금 법정부담금 : 10,000,000원
C95: 법정부담
C96: 전 출 금
A97: 4600 | D97: =D99 -> 3000 | E97: =E99 -> 5000 | F97: =D97-E97 -> -2000
A98: 예 비 비
B99: 4610 | D99: =D101 -> 3000 | E99: =E101 -> 5000 | F99: =D99-E99 -> -2000
B100: 예 비 비
C101: 4611 | D101: 3000 | E101: 5000 | F101: =D101-E101 -> -2000 | G101: * 예비비 : 3,000,000원
C102: 예 비 비
A103: 1200 | D103: =D105+D119+D124+D114 -> 13700 | E103: =E105+E119+E124+E114 -> 16500 | F103: =D103-E103 -> -2800
A104: 투자와기타
A105: 자산지출 | B105: 1220 | D105: =D111+D108 -> 1000 | E105: =E111+E108 -> 1000 | F105: =D105-E105 -> 0
B106: 투자자산
B107: 지 출
C108: 1221 | D108: 1000 | E108: 1000 | F108: =D108-E108 -> 0 | G108: * 투자유가증권 정기예금이자 재예치
C109: 투자유가증권
C110: 매입대
C111: 1229 | D111: 0 | E111: 0 | F111: =D111-E111 -> 0
C112: 기타투자자산
C113: 지 출
B114: 1240 | D114: =D116 -> 12700 | E114: =E116 -> 15500 | F114: =D114-E114 -> -2800
B115: 기타자산
B116: 지 출 | C116: 1244 | D116: 12700 | E116: 15500 | F116: =D116-E116 -> -2800 | G116: 수익용예금 만기 이자수입 재예치
C117: 수익용예금
C118: 예 치
B119: 1260 | D119: =D121 -> 0 | E119: =E121 -> 0 | F119: =D119-E119 -> 0
B120: 임의기금적립
C121: 1263 | D121: 0 | E121: 0 | F121: =D121-E121 -> 0
C122: 임의건축
C123: 기금적립
B124: 1240 | D124: =D126+D129+D132 -> 0 | E124: =E126+E129+E132 -> 0 | F124: =D124-E124 -> 0
B125: 기타자산
B126: 지 출 | C126: 1241 | D126: 0 | E126: 0 | F126: =D126-E126 -> 0
C127: 전신,전화
C128: 보증금지출
C129: 1242 | D129: 0 | E129: 0 | F129: =D129-E129 -> 0
C130: 임차보증금
C131: 지 출
C132: 1249 | D132: 0 | E132: 0 | F132: =D132-E132 -> 0
C133: 기타자산지출
A134: 1300 | D134: =D137+D155 -> 500 | E134: =E137+E155 -> 500 | F134: =D134-E134 -> 0
A135: 고정자산
A136: 매입지출
B137: 1310 | D137: =D140+D142+D144+D147+D150+D153 -> 500 | E137: =E140+E142+E144+E147+E150+E153 -> 500 | F137: =D137-E137 -> 0
B138: 유형고정자산
B139: 매입지출
C140: 1311 | D140: 0 | E140: 0 | F140: =D140-E140 -> 0
C141: 토지매입비
C142: 1312 | D142: 0 | E142: 0 | F142: =D142-E142 -> 0
C143: 건물매입비
C144: 1314 | D144: 0 | E144: 0 | F144: =D144-E144 -> 0
C145: 기계.기구 | D145: 240000 | E145: 240000
C146: 매 입 비
C147: 1315 | D147: 500 | E147: 500 | F147: =D147-E147 -> 0 | G147: * 사무비품 구입 : 500,000원
C148: 집기비품
C149: 매 입 비
C150: 1316 | D150: 0 | E150: 0 | F150: =D150-E150 -> 0
C151: 차량운반구
C152: 매 입 비
C153: 1317 | D153: 0 | E153: 0 | F153: =D153-E153 -> 0
C154: 도서구입비
B155: 1320 | D155: =D158 -> 0 | E155: =E158 -> 0 | F155: =D155-E155 -> 0
B156: 무형고정자산
B157: 취 득 비
C158: 1321 | D158: 0 | E158: 0 | F158: =D158-E158 -> 0
C159: 무형고정자산
C160: 취 득 비
A161: 미사용 | B161: 차기이월자금 | F161: =D161-E161 -> 0
A162: 차기이월자금
B164: 기 말 | F164: =D164-E164 -> 0
B165: 유동자산
C166: 1110 | F166: =D166-E166 -> 0 | G166: * 이월자금 : 52,462,000원
C167: 유동자금
C168: 1120 | F168: 0 | G168: * 선급법인세 : 2,300,000원
C169: 기타유동자산
A170: 자 금 지 출 총 계 | D170: =D8+D18+D80+D87+D97+D103+D134+D161 -> 121710 | E170: =E8+E18+E80+E87+E97+E103+E134+E161 -> 136988 | F170: =D170-E170 -> -15278
C173: 수입총계 | D173: =수입!D252 -> 121710 | E173: =+D173-D170 -> 0 | F173: =F161+F134+F103+F97+F87+F80+F18+F8 -> -15278
D175: =D170=D173 -> TRUE | F175: =F173=F170 -> TRUE
D177: =D170-D173 -> 0
D179: =D161-D177 -> 0
